fUSD/lending_fUSD_20240327
["ID","MTS","AMOUNT","RATE_DAILY","PERIOD"]
[320819320,1711576246260,-155.0,0.00030476,2]
[320819321,1711576246270,-150.0,0.00042613,2]
[320819322,1711576246280,-2912.58117048,0.00047251,30]
[320819323,1711576246290,-299.56773408,0.00047485,2]
[320819324,1711576246299,-150.0,0.0004793,7]
[320819325,1711576246309,-34082.37118654,0.0004888,2]
[320819326,1711576246325,-906.87830503,0.0004888,2]
[320819327,1711576246363,-428.26,0.00047394,2]
[320819328,1711576246374,-1976.46477545,0.0004888,2]
[320819329,1711576246385,-440.80572,0.0004888,2]
[320819330,1711576246420,-150.0,0.00048834,7]
[320819331,1711576246430,-7950.19529915,0.0004888,2]
[320819332,1711576246442,-46733.67354536,0.0004888,2]
[320819333,1711576246453,-9467.55342923,0.0004888,2]
[320819334,1711576246465,-1626.3118188,0.0004888,2]
[320819335,1711576246477,-468.79962872,0.0004888,2]
[320819336,1711576246488,-10146.27234861,0.0004888,2]
[320819337,1711576246499,-4449.69891006,0.0004888,2]
[320819338,1711576246511,-2783.18280622,0.0004888,2]
[320819339,1711576246527,-150.0,0.00048874,7]
[320819340,1711576246537,-8923.99030406,0.0004888,2]
[320819341,1711576246617,-368.61403858,0.00045431,2]
[320819342,1711576246658,-608.35712949,0.00045431,2]
[320819347,1711576294471,500.0,0.0002,5]
[320819348,1711576360893,1000.0,0.0003,10]
[320819362,1711577367134,-161.30381113,0.000199,2]
[320819363,1711577367157,-679.10875887,0.00019999,2]
[320819373,1711577432443,-1320.89124113,0.00019999,2]
[320819374,1711577432452,-69.17730531,0.0002,2]
[320819375,1711577432554,-397.73543264,0.0002,2]
[320819376,1711577432564,-161.3038111,0.0002415,2]
[320819377,1711577432574,-161.3038111,0.000284,2]
[320819378,1711577432584,-246.78038964,0.0003,4]
[320819379,1711577432594,-185.2394475,0.0003,2]
[320819380,1711577432604,-1029.63976993,0.0003,4]
[320819381,1711577432614,-161.3038111,0.0003265,2]
[320819382,1711577432625,-161.3038111,0.000369,2]
[320819383,1711577432635,-334.9638,0.00039668,2]
[320819384,1711577432645,-424.46212175,0.00039767,4]
[320819385,1711577432656,-299.99,0.00039767,120]
[320819387,1711577432666,-2797.25651809,0.00039768,2]
[320819466,1711577438377,-3574.9784751,0.00039768,2]
[320819476,1711577438433,-14463.97117448,0.00039768,2]
[320819488,1711577438492,-5461.19999738,0.00039768,2]
[320819491,1711577438504,-1864.94523637,0.00039768,2]
[320819587,1711577440523,-356.59571564,0.00039768,2]
[320819588,1711577440534,-1481.04288294,0.00039768,2]
[320819589,1711577440544,-3289.38171216,0.00039768,30]
[320819590,1711577440555,-2376.48827973,0.00039768,30]
[320819591,1711577440577,-428.58000811,0.00039768,30]
[320819592,1711577440587,-8505.31206369,0.00039768,2]
[320819593,1711577440599,-798.27428436,0.00039768,2]
[320819611,1711577443391,-542.15949051,0.00039768,2]
[320819612,1711577443404,-1126.15003434,0.00039768,2]
[320819613,1711577443695,-614.89041066,0.00039768,2]
[320819614,1711577443728,-1609.66046935,0.00039768,2]
[320819615,1711577443740,-1704.14634174,0.00039768,2]
[320819616,1711577443838,-4244.790072,0.00039768,2]
[320819617,1711577443850,-263.95605343,0.00039768,2]
[320819731,1711578153258,1001.3004824,0.0003,10]
[320819736,1711578319013,1084.49139525,0.00040419,120]
[320819778,1711578631526,-421.02436441,0.00026967,2]
[320819781,1711578631539,-1921.05957471,0.00026967,2]
[320819783,1711578631549,-3647.86184773,0.00026968,2]
[320819784,1711578631558,-2000.0,0.00026969,2]
[320819785,1711578631567,-591.0994759,0.0002697,2]
[320819786,1711578631576,-150.0,0.0002697,2]
[320819787,1711578631585,-250.0,0.00027,3]
[320819788,1711578631595,-300.0,0.00029,3]
[320819789,1711578631604,-350.0,0.00031,3]
[320819790,1711578631613,-847.0,0.000317,2]
[320819791,1711578631623,-400.0,0.00033,3]
[320819792,1711578631632,-450.0,0.00035,3]
[320819793,1711578631641,-499.99,0.00035,2]
[320819794,1711578631650,-150.99,0.00035,30]
[320819795,1711578631660,-500.0,0.00037,3]
[320819796,1711578631669,-161.02809968,0.00038399,2]
[320819797,1711578631679,-1000.0,0.000385,2]
[320819798,1711578631688,-217.05486785,0.00038575,4]
[320819799,1711578631698,-644.17906747,0.00038968,4]
[320819800,1711578631708,-1000.0,0.00039,2]
[320819801,1711578631717,-500.0,0.0003902,2]
[320819802,1711578631726,-1000.0,0.0003902,2]
[320819803,1711578631736,-2647.652208,0.000394,33]
[320819804,1711578631745,-1619.15674035,0.00039466,2]
[320819805,1711578631759,-333.09588254,0.00039467,4]
[320819806,1711578631770,-1136.90139976,0.00039699,2]
[320819807,1711578631780,-500.0,0.00039699,15]
[320819808,1711578631789,-500.0,0.00039699,15]
[320819809,1711578631798,-580.91559871,0.00039699,15]
[320819810,1711578631807,-11304.93149685,0.000397,2]
[320819811,1711578631847,-519.76479415,0.000397,2]
[320819812,1711578631890,-1766.78559251,0.000397,2]
[320819813,1711578631902,-3668.65802116,0.000397,2]
[320819814,1711578631921,-30739.86009533,0.000397,2]
[320819815,1711578631931,-868.62075854,0.00039763,4]
[320819816,1711578631941,-528.40833494,0.00039763,4]
[320819817,1711578631951,-155.0,0.00039763,4]
[320819818,1711578631962,-876.18180942,0.00039764,4]
[320819819,1711578631972,-2565.02434135,0.00039765,2]
[320819820,1711578631981,-444.51426008,0.00039766,4]
[320819821,1711578631991,-3626.25717377,0.00039766,4]
[320819822,1711578632000,-155.23906023,0.00039767,4]
[320819824,1711578632010,-324.149843,0.00039767,10]
[320819826,1711578632020,-400.0,0.00039767,2]
[320819828,1711578632031,-155.0,0.00039767,4]
[320819830,1711578632041,-3570.73081908,0.00039866,4]
[320819831,1711578632052,-2053.48395064,0.00039866,4]
[320819833,1711578632062,-155.0,0.00039866,4]
[320819835,1711578632072,-1921.27100375,0.00039866,4]
[320819836,1711578632086,-1755.94281963,0.00039866,4]
[320819837,1711578632097,-1500.0,0.000399,33]
[320819838,1711578632107,-250.0,0.0004,120]
[320819839,1711578632118,-333.95058875,0.0004,2]
[320819840,1711578632129,-530.65,0.00040027,2]
[320819841,1711578632140,-699.22,0.00040158,4]
[320819842,1711578632150,-167.9279156,0.00040158,2]
[320819843,1711578632160,-1500.0,0.000404,33]
[320819844,1711578632171,-150.0,0.00040419,2]
[320819845,1711578632181,-150.0,0.00040419,2]
[320819846,1711578632192,-265.677117,0.00040419,2]
[320819847,1711578632202,-207.0,0.000407,2]
[320819848,1711578632214,-250.0,0.00041,120]
[320819849,1711578632224,-500.0,0.00041174,2]
[320819850,1711578632235,-183.0,0.00041241,2]
[320819851,1711578632244,-1897.34,0.00041265,2]
[320819852,1711578632254,-250.0,0.0004134,2]
[320819853,1711578632263,-23870.0,0.00041383,2]
[320819854,1711578632273,-150.0,0.00041416,2]
[320819855,1711578632282,-1000.0,0.00041443,2]
[320819856,1711578632291,-299.06,0.00041487,2]
[320819857,1711578632302,-150.48,0.00041518,2]
[320819858,1711578632312,-163.32,0.00041603,2]
[320819859,1711578632322,-736.6,0.00041615,2]
[320819860,1711578632332,-250.0,0.00041683,112]
[320819861,1711578632342,-250.0,0.00041748,2]
[320819862,1711578632353,-2847.71,0.00041889,2]
[320819863,1711578632364,-184.0,0.00042026,120]
[320819864,1711578632374,-161.02809967,0.00042058,2]
[320819865,1711578632384,-151.032807,0.00042197,42]
[320819866,1711578632394,-152.34,0.00042278,15]
[320819867,1711578632407,-530.65,0.00042291,2]
[320819868,1711578632418,-151.032807,0.00042297,43]
[320819869,1711578632428,-207.0,0.0004232,2]
[320819870,1711578632440,-163.32,0.00042326,2]
[320819871,1711578632450,-200.0,0.0004277,20]
[320819872,1711578632464,-1125.52,0.00042945,2]
[320819873,1711578632475,-163.32,0.00043048,2]
[320819874,1711578632485,-1755.98271187,0.00043157,2]
[320819875,1711578632496,-151.032807,0.00043297,44]
[320819876,1711578632506,-170.31,0.00043673,2]
[320819877,1711578632515,-163.32,0.00043771,2]
[320819878,1711578632526,-207.0,0.0004394,30]
[320819879,1711578632536,-200.0,0.00044233,25]
[320819880,1711578632547,-800.0,0.00044233,25]
[320819881,1711578632556,-500.0,0.00044233,30]
[320819882,1711578632566,-150.0,0.000443,8]
[320819883,1711578632577,-530.65,0.00044555,2]
[320819884,1711578632587,-150.0,0.000448,8]
[320819885,1711578632597,-400.0,0.00045,14]
[320819886,1711578632608,-1000.0,0.00045206,2]
[320819887,1711578632618,-152.34,0.00045213,15]
[320819888,1711578632627,-150.0,0.000453,8]
[320819889,1711578632637,-207.0,0.0004556,30]
[320819890,1711578632647,-161.02809967,0.00045717,2]
[320819891,1711578632657,-150.0,0.000458,8]
[320819892,1711578632667,-180.0,0.00046065,120]
[320819893,1711578632677,-150.0,0.000463,8]
[320819894,1711578632687,-965.0,0.00046575,30]
[320819895,1711578632697,-1000.0,0.00046624,2]
[320819896,1711578632709,-885.4,0.00046676,30]
[320819897,1711578632719,-7329.7845,0.00046686,2]
[320819898,1711578632729,-12999.92492009,0.000467,2]
[320819899,1711578632739,-150.0,0.000468,8]
[320819900,1711578632748,-300.0,0.00046801,2]
[320819901,1711578632759,-530.65,0.00046819,2]
[320819902,1711578632770,-1275.19604939,0.00046835,30]
[320819903,1711578632780,-982.7997,0.00047051,2]
[320819904,1711578632789,-3951.4646,0.00047051,2]
[320819905,1711578632800,-157.032807,0.00047148,93]
[320819906,1711578632810,-207.0,0.0004718,30]
[320819907,1711578632820,-150.0,0.000473,9]
[320819908,1711578632829,-157.032807,0.00047448,94]
[320819909,1711578632839,-1850.77,0.00047509,2]
[320819910,1711578632850,-157.032807,0.00047748,95]
[320819911,1711578632859,-150.0,0.000478,9]
[320819912,1711578632869,-151.032807,0.00047938,82]
[320819913,1711578632879,-1558.70197648,0.00048,3]
[320819914,1711578632889,-151.032807,0.00048038,83]
[320819915,1711578632898,-157.032807,0.00048148,96]
[320819916,1711578632908,-152.34,0.00048149,15]
[320819917,1711578632918,-12999.92492008,0.00048197,2]
[320819918,1711578632927,-151.032807,0.00048238,84]
[320819919,1711578632937,-150.0,0.00048273,2]
[320819920,1711578632947,-150.0,0.00048273,2]
[320819921,1711578632957,-150.0,0.00048273,2]
[320819922,1711578632968,-732.0,0.000483,7]
[320819923,1711578632979,-150.0,0.000483,9]
[320819924,1711578632989,-151.032807,0.00048338,85]
[320819925,1711578633000,-162.85775373,0.00048391,3]
[320819926,1711578633012,-157.032807,0.00048448,97]
[320819927,1711578633022,-200.0,0.00048488,25]
[320819928,1711578633034,-151.032807,0.00048538,86]
[320819929,1711578633044,-150.0,0.00048576,7]
[320819930,1711578633055,-150.0,0.00048577,7]
[320819931,1711578633214,-150.0,0.00048585,7]
[320819932,1711578633223,-1500.0,0.00048593,7]
[320819933,1711578633233,-150.0,0.00048606,7]
[320819934,1711578633242,-300.0,0.00048609,7]
[320819935,1711578633252,-150.0,0.00048611,7]
[320819936,1711578633262,-150.0,0.00048611,7]
[320819937,1711578633271,-150.0,0.00048614,7]
[320819938,1711578633281,-150.0,0.00048615,7]
[320819939,1711578633290,-150.0,0.00048616,7]
[320819940,1711578633299,-150.0,0.00048616,7]
[320819941,1711578633309,-150.0,0.00048617,7]
[320819942,1711578633318,-150.0,0.00048622,7]
[320819943,1711578633327,-150.0,0.00048622,7]
[320819944,1711578633337,-150.0,0.00048623,7]
[320819945,1711578633346,-1500.0,0.00048632,7]
[320819946,1711578633355,-150.0,0.00048633,7]
[320819947,1711578633364,-300.0,0.00048634,7]
[320819948,1711578633373,-151.032807,0.00048638,87]
[320819949,1711578633383,-150.0,0.00048638,7]
[320819950,1711578633393,-150.0,0.00048641,7]
[320819951,1711578633403,-150.0,0.00048642,7]
[320819952,1711578633414,-150.0,0.00048646,7]
[320819953,1711578633424,-150.0,0.00048648,7]
[320819954,1711578633433,-150.0,0.00048649,7]
[320819955,1711578633442,-150.0,0.00048649,7]
[320819956,1711578633451,-150.0,0.0004865,7]
[320819957,1711578633462,-150.0,0.00048651,7]
[320819958,1711578633473,-150.0,0.00048652,7]
[320819959,1711578633482,-1500.0,0.00048659,7]
[320819960,1711578633492,-150.0,0.0004866,7]
[320819961,1711578633502,-221.06395874,0.00048661,7]
[320819962,1711578633511,-150.0,0.00048661,7]
[320819963,1711578633521,-150.0,0.00048679,7]
[320819964,1711578633530,-739.1055,0.00048681,2]
[320819965,1711578633539,-150.0,0.00048684,7]
[320819966,1711578633548,-150.0,0.00048684,7]
[320819967,1711578633557,-150.0,0.00048688,7]
[320819968,1711578633567,-150.0,0.00048688,7]
[320819969,1711578633576,-150.0,0.00048693,7]
[320819970,1711578633585,-150.0,0.00048695,7]
[320819971,1711578633594,-150.0,0.00048696,7]
[320819972,1711578633603,-150.0,0.00048699,7]
[320819973,1711578633613,-150.0,0.000487,7]
[320819974,1711578633622,-150.0,0.000487,7]
[320819975,1711578633632,-1016.0,0.000487,117]
[320819976,1711578633641,-150.0,0.00048704,7]
[320819977,1711578633651,-150.0,0.00048707,7]
[320819978,1711578633660,-150.0,0.00048707,7]
[320819979,1711578633670,-150.0,0.0004871,7]
[320819980,1711578633680,-150.0,0.0004871,7]
[320819981,1711578633690,-150.0,0.00048711,7]
[320819982,1711578633700,-150.0,0.00048712,7]
[320819983,1711578633711,-150.0,0.00048712,7]
[320819984,1711578633721,-150.0,0.00048717,7]
[320819985,1711578633731,-150.0,0.00048718,7]
[320819986,1711578633740,-150.0,0.00048722,7]
[320819987,1711578633752,-150.0,0.00048725,7]
[320819988,1711578633761,-150.0,0.00048725,7]
[320819989,1711578633775,-300.0,0.0004873,7]
[320819990,1711578633785,-150.0,0.0004873,7]
[320819991,1711578633795,-150.0,0.0004873,7]
[320819992,1711578633804,-150.0,0.00048734,7]
[320819993,1711578633814,-150.0,0.00048735,7]
[320819994,1711578633824,-150.0,0.00048736,7]
[320819995,1711578633834,-151.032807,0.00048738,88]
[320819996,1711578633846,-157.032807,0.00048748,98]
[320819997,1711578633857,-428.75879949,0.0004875,7]
[320819998,1711578633867,-150.0,0.0004875,7]
[320819999,1711578633877,-150.0,0.00048756,7]
[320820000,1711578633887,-150.0,0.00048756,7]
[320820001,1711578633896,-150.0,0.0004876,7]
[320820002,1711578633906,-150.0,0.0004876,7]
[320820003,1711578633915,-150.0,0.00048762,7]
[320820004,1711578633925,-150.0,0.00048762,7]
[320820005,1711578633935,-150.0,0.00048767,7]
[320820006,1711578633945,-150.0,0.0004877,7]
[320820007,1711578633954,-150.0,0.00048773,7]
[320820008,1711578633965,-150.0,0.00048773,7]
[320820009,1711578633974,-150.0,0.0004878,7]
[320820010,1711578633984,-150.0,0.00048782,7]
[320820011,1711578633995,-1500.0,0.00048787,7]
[320820012,1711578634005,-150.35492262,0.00048787,13]
[320820013,1711578634016,-331.43653998,0.00048787,20]
[320820014,1711578634026,-150.0,0.00048788,7]
[320820015,1711578634036,-309.97221903,0.00048789,2]
[320820016,1711578634046,-150.0,0.00048791,7]
[320820017,1711578634057,-150.0,0.00048792,7]
[320820018,1711578634067,-150.0,0.00048795,7]
[320820019,1711578634077,-150.0,0.00048798,7]
[320820020,1711578634087,-479.0,0.000488,37]
[320820021,1711578634096,-472.0,0.000488,26]
[320820022,1711578634106,-150.0,0.000488,120]
[320820023,1711578634115,-207.0,0.000488,30]
[320820024,1711578634125,-150.0,0.000488,7]
[320820025,1711578634134,-150.0,0.000488,9]
[320820026,1711578634145,-150.0,0.00048802,7]
[320820027,1711578634156,-150.0,0.00048807,7]
[320820028,1711578634167,-150.0,0.00048808,7]
[320820029,1711578634177,-1500.0,0.00048809,7]
[320820030,1711578634188,-150.0,0.00048809,7]
[320820031,1711578634200,-150.0,0.00048817,7]
[320820032,1711578634211,-150.0,0.00048821,7]
[320820033,1711578634223,-150.0,0.00048822,7]
[320820034,1711578634232,-150.0,0.00048825,7]
[320820035,1711578634244,-1500.0,0.00048827,7]
[320820036,1711578634254,-150.0,0.00048828,7]
[320820037,1711578634265,-150.0,0.00048828,7]
[320820038,1711578634275,-150.0,0.00048829,7]
[320820039,1711578634286,-150.0,0.0004883,7]
[320820040,1711578634296,-150.0,0.0004883,7]
[320820041,1711578634306,-150.0,0.00048832,7]
[320820042,1711578634316,-150.0,0.00048835,7]
[320820043,1711578634326,-150.0,0.00048835,7]
[320820044,1711578634336,-150.0,0.00048836,7]
[320820045,1711578634346,-150.0,0.00048837,7]
[320820046,1711578634356,-300.0,0.00048843,7]
[320820047,1711578634366,-150.0,0.00048843,7]
[320820048,1711578634376,-150.0,0.00048843,7]
[320820049,1711578634386,-150.0,0.00048845,7]
[320820050,1711578634396,-150.0,0.00048849,7]
[320820051,1711578634408,-150.0,0.00048852,7]
[320820052,1711578634418,-150.0,0.00048855,7]
[320820053,1711578634428,-150.0,0.00048858,7]
[320820054,1711578634438,-150.0,0.00048859,7]
[320820055,1711578634448,-150.0,0.00048861,7]
[320820056,1711578634458,-150.0,0.00048862,7]
[320820057,1711578634468,-150.0,0.00048869,7]
[320820058,1711578634478,-150.0,0.0004887,7]
[320820059,1711578634489,-327.37,0.0004887,2]
[320820060,1711578634499,-150.0,0.00048873,7]
[320820061,1711578634510,-150.0,0.00048876,7]
[320820062,1711578634521,-327.37,0.00048877,2]
[320820063,1711578634532,-365.47,0.00048877,2]
[320820064,1711578634541,-365.47,0.00048877,2]
[320820065,1711578634551,-150.0,0.00048878,7]
[320820066,1711578634562,-327.37,0.00048879,2]
[320820067,1711578634573,-323.11942737,0.00048879,60]
[320820068,1711578634584,-205.41101901,0.00048879,2]
[320820069,1711578634596,-2410.34145343,0.00048879,2]
[320820070,1711578634605,-180934.64318999,0.0004888,2]
[320820071,1711578634615,-39050.1028736,0.00048887,2]
[320820072,1711578634625,-167725.0587793,0.00048887,2]
[320820073,1711578634634,-15790.9203193,0.00048887,2]
[320820074,1711578634643,-203.1726793,0.00048887,2]
[320820075,1711578634653,-7903.3960545,0.00048887,2]
[320820076,1711578634663,-901.27,0.00049,5]
[320820077,1711578634673,-600.0,0.00049,50]
[320820078,1711578634682,-530.65,0.00049083,2]
[320820079,1711578634692,-3699.14553166,0.00049125,2]
[320820080,1711578634701,-1225.0,0.00049128,2]
[320820081,1711578634712,-537.0,0.00049128,2]
[320820082,1711578634721,-1252.0,0.00049128,2]
[320820083,1711578634730,-604.0,0.00049128,2]
[320820084,1711578634739,-1267.0,0.00049128,2]
[320820085,1711578634749,-433.0,0.00049128,2]
[320820086,1711578634758,-802.0,0.00049128,2]
[320820087,1711578634768,-278.0,0.00049128,2]
[320820088,1711578634778,-1138.0,0.00049128,2]
[320820089,1711578634787,-150.0,0.00049128,2]
[320820090,1711578634796,-396.0,0.00049128,2]
[320820091,1711578634806,-1461.0,0.00049128,2]
[320820092,1711578634815,-2959.0,0.00049128,2]
[320820093,1711578634824,-1626.0,0.00049128,2]
[320820094,1711578634833,-150.0,0.00049128,2]
[320820095,1711578634843,-2423.0,0.00049128,2]
[320820096,1711578634853,-213.0,0.00049128,2]
[320820097,1711578634863,-1046.0,0.00049128,2]
[320820098,1711578634873,-1176.0,0.00049128,2]
[320820099,1711578634882,-5680.0,0.00049128,2]
[320820100,1711578634892,-42964.0,0.00049128,2]
[320820101,1711578634901,-4771.0,0.00049128,2]
[320820102,1711578634910,-961.0,0.00049128,2]
[320820103,1711578634919,-458.0,0.00049128,2]
[320820104,1711578634928,-2420.0,0.00049128,2]
[320820105,1711578634937,-1381.0,0.00049128,2]
[320820106,1711578634946,-2449.0,0.00049128,2]
[320820107,1711578634956,-157.032807,0.00049148,109]
[320820108,1711578634966,-197.0,0.000493,2]
[320820109,1711578634975,-907.04836035,0.000493,2]
[320820110,1711578634984,-1484.0,0.000493,2]
[320820111,1711578634994,-151.0,0.00049315,120]
[320820112,1711578635004,-151.0,0.00049315,120]
[320820113,1711578635013,-151.0,0.00049315,120]
[320820114,1711578635023,-151.0,0.00049315,120]
[320820115,1711578635033,-151.0,0.00049315,120]
[320820116,1711578635042,-188.78,0.00049315,120]
[320820117,1711578635052,-151.0,0.00049315,120]
[320820118,1711578635062,-151.0,0.00049315,120]
[320820119,1711578635072,-282.3334,0.00049315,120]
[320820120,1711578635082,-151.0,0.00049315,7]
[320820121,1711578635091,-151.0,0.00049315,120]
[320820122,1711578635101,-151.0,0.00049315,120]
[320820123,1711578635111,-152.593239,0.00049315,120]
[320820124,1711578635121,-151.0,0.00049315,120]
[320820125,1711578635131,-151.0,0.00049315,14]
[320820126,1711578635141,-151.0,0.00049315,120]
[320820127,1711578635150,-151.0,0.00049315,120]
[320820128,1711578635160,-151.0,0.00049315,30]
[320820129,1711578635170,-151.0,0.00049315,120]
[320820130,1711578635181,-151.0,0.00049315,120]
[320820131,1711578635192,-151.0,0.00049315,120]
[320820132,1711578635202,-151.0,0.00049315,120]
[320820133,1711578635214,-261.721924,0.00049315,120]
[320820134,1711578635224,-151.0,0.00049315,120]
[320820135,1711578635234,-151.0,0.00049315,120]
[320820136,1711578635243,-795.869474,0.00049315,120]
[320820137,1711578635253,-795.869474,0.00049315,120]
[320820138,1711578635263,-795.869474,0.00049315,120]
[320820139,1711578635273,-795.869474,0.00049315,120]
[320820140,1711578635283,-151.0,0.00049315,120]
[320820141,1711578635292,-151.0,0.00049315,120]
[320820142,1711578635302,-151.0,0.00049315,120]
[320820143,1711578635311,-151.0,0.00049315,120]
[320820144,1711578635322,-151.0,0.00049315,120]
[320820145,1711578635332,-151.0,0.00049315,120]
[320820146,1711578635342,-151.0,0.00049315,120]
[320820147,1711578635352,-151.0,0.00049315,120]
[320820148,1711578635362,-151.0,0.00049315,120]
[320820149,1711578635371,-151.0,0.00049315,120]
[320820150,1711578635381,-151.0,0.00049315,120]
[320820151,1711578635391,-151.0,0.00049315,120]
[320820152,1711578635401,-151.0,0.00049315,120]
[320820153,1711578635410,-151.0,0.00049315,120]
[320820154,1711578635420,-151.0,0.00049315,120]
[320820155,1711578635430,-151.0,0.00049315,120]
[320820156,1711578635440,-165.011387,0.00049315,120]
[320820157,1711578635450,-151.0,0.00049315,120]
[320820158,1711578635460,-151.0,0.00049315,120]
[320820159,1711578635470,-196.475239,0.00049315,120]
[320820160,1711578635480,-196.475239,0.00049315,120]
[320820161,1711578635489,-196.475239,0.00049315,120]
[320820162,1711578635602,-196.475239,0.00049315,120]
[320820163,1711578635630,-151.0,0.00049315,60]
[320820164,1711578635640,-151.0,0.00049315,60]
[320820165,1711578635650,-151.0,0.00049315,60]
[320820166,1711578635661,-151.0,0.00049315,60]
[320820167,1711578635671,-151.0,0.00049315,120]
[320820168,1711578635681,-238.415756,0.00049315,120]
[320820169,1711578635691,-151.0,0.00049315,120]
[320820170,1711578635702,-151.0,0.00049315,120]
[320820171,1711578635712,-151.0,0.00049315,120]
[320820172,1711578635722,-151.0,0.00049315,120]
[320820173,1711578635732,-151.0,0.00049315,120]
[320820174,1711578635741,-151.0,0.00049315,120]
[320820175,1711578635751,-151.0,0.00049315,120]
[320820176,1711578635764,-151.0,0.00049315,120]
[320820177,1711578635774,-151.0,0.00049315,120]
[320820178,1711578635783,-233.291425,0.00049315,120]
[320820179,1711578635793,-151.0,0.00049315,120]
[320820180,1711578635802,-151.0,0.00049315,120]
[320820181,1711578635812,-151.0,0.00049315,120]
[320820182,1711578635821,-151.0,0.00049315,120]
[320820183,1711578635831,-151.0,0.00049315,120]
[320820184,1711578635841,-151.0,0.00049315,120]
[320820185,1711578635851,-151.0,0.00049315,120]
[320820186,1711578635861,-151.0,0.00049315,120]
[320820187,1711578635871,-151.0,0.00049315,120]
[320820188,1711578635880,-154.119638,0.00049315,120]
[320820189,1711578635890,-151.0,0.00049315,120]
[320820190,1711578635900,-151.0,0.00049315,120]
[320820191,1711578635909,-151.0,0.00049315,120]
[320820192,1711578635918,-254.849436,0.00049315,120]
[320820193,1711578635928,-151.0,0.00049315,120]
[320820194,1711578635937,-256.576138,0.00049315,120]
[320820195,1711578635947,-182.071185,0.00049315,120]
[320820196,1711578635956,-151.0,0.00049315,30]
[320820197,1711578635967,-173.839973,0.00049315,30]
[320820198,1711578635977,-151.0,0.00049315,120]
[320820199,1711578635986,-151.0,0.00049315,120]
[320820200,1711578635996,-151.0,0.00049315,120]
[320820201,1711578636005,-151.0,0.00049315,120]
[320820202,1711578636014,-151.0,0.00049315,120]
[320820203,1711578636023,-151.0,0.00049315,120]
[320820204,1711578636032,-151.0,0.00049315,30]
[320820205,1711578636042,-151.0,0.00049315,120]
[320820206,1711578636051,-151.0,0.00049315,120]
[320820207,1711578636061,-151.0,0.00049315,120]
[320820208,1711578636071,-161.02809967,0.00049376,2]
[320820209,1711578636080,-157.032807,0.00049448,109]
[320820210,1711578636090,-365.47,0.00049684,2]
[320820211,1711578636099,-12999.92492008,0.00049694,2]
[320820212,1711578636109,-151.0,0.00049694,30]
[320820213,1711578636118,-151.0,0.00049694,120]
[320820214,1711578636127,-157.032807,0.00049748,109]
[320820215,1711578636136,-150.0,0.000498,120]
[320820216,1711578636146,-10680.17799947,0.000499,30]
[320820217,1711578636156,-151.0,0.0004999,120]
[320820218,1711578636166,-213.84740845,0.00049999,120]
[320820219,1711578636175,-436.3633585,0.00049999,120]
[320820220,1711578636185,-489.30164674,0.00049999,120]
[320820221,1711578636195,-423.98642003,0.00049999,120]
[320820222,1711578636205,-200.99418002,0.00049999,120]
[320820223,1711578636216,-350.0,0.00049999,120]
[320820224,1711578636226,-468.98642003,0.00049999,120]
[320820225,1711578636236,-23174.24,0.0005,120]